bitfinex/quotes_SOLUSD_20230101
["timestamp","ask_amount","ask_price","bid_price","bid_amount"]
[1672550178558,40.0,9.8314,9.8237,111.5639]
[1672550178770,40.0,9.8312,9.8237,111.5639]
[1672550178992,76.37,9.8311,9.8237,111.5639]
[1672550179201,40.0,9.831,9.8237,111.5639]
[1672550179409,76.38,9.8309,9.8237,111.5639]
[1672550179730,40.0,9.8308,9.8237,111.5639]
[1672550180044,40.0,9.8306,9.8237,111.5639]
[1672550180358,40.0,9.8304,9.8237,111.5639]
[1672550180567,76.38,9.8303,9.8237,111.5639]
[1672550180767,76.38,9.8309,9.8237,111.5639]
[1672550180983,40.0,9.833,9.8237,111.5639]
[1672550181196,40.0,9.8328,9.8237,111.5639]
[1672550181397,76.36,9.8327,9.8237,111.5639]
[1672550181612,40.0,9.8326,9.8237,111.5639]
[1672550181822,40.0,9.8324,9.8237,111.5639]
[1672550182051,76.37,9.8323,9.8237,111.5639]
[1672550182451,40.0,9.8326,9.8237,111.5639]
[1672550182768,40.0,9.8324,9.8237,111.5639]
[1672550182965,40.0,9.8322,9.8237,111.5639]
[1672550183178,40.0,9.832,9.8237,111.5639]
[1672550183389,76.37,9.8319,9.8237,111.5639]
[1672550183612,40.0,9.8318,9.8237,111.5639]
[1672550183832,40.0,9.8316,9.8237,111.5639]
[1672550184029,40.0,9.8314,9.8237,111.5639]
[1672550184350,40.0,9.8312,9.8237,111.5639]
[1672550184560,76.37,9.8311,9.8237,111.5639]
[1672550184781,40.0,9.831,9.8237,111.5639]
[1672550185087,40.0,9.8308,9.8237,111.5639]
[1672550185303,76.38,9.8307,9.8237,111.5639]
[1672550185513,40.0,9.8306,9.8237,111.5639]
[1672550185825,40.0,9.8304,9.8237,111.5639]
[1672550186039,40.0,9.8302,9.8237,111.5639]
[1672550186232,40.0,9.83,9.8237,111.5639]
[1672550186441,76.38,9.8299,9.8237,111.5639]
[1672550186653,40.0,9.8298,9.8237,111.5639]
[1672550186878,40.0,9.8296,9.8237,111.5639]
[1672550187190,40.0,9.8294,9.8237,111.5639]
[1672550187397,40.0,9.8292,9.8237,111.5639]
[1672550187604,76.39,9.8291,9.8237,111.5639]
[1672550187820,40.0,9.829,9.8237,111.5639]
[1672550188012,40.0,9.8288,9.8237,111.5639]
[1672550188226,76.39,9.8287,9.8237,111.5639]
[1672550188436,40.0,9.8286,9.8237,111.5639]
[1672550188656,40.0,9.8284,9.8237,111.5639]
[1672550188977,40.0,9.8282,9.8237,111.5639]
[1672550189194,40.0,9.828,9.8237,111.5639]
[1672550189389,76.4,9.8279,9.8237,111.5639]
[1672550189599,40.0,9.8278,9.8237,111.5639]
[1672550189923,40.0,9.8276,9.8237,111.5639]
[1672550190135,76.4,9.8275,9.8237,111.5639]
[1672550190450,40.0,9.8274,9.8237,111.5639]
[1672550190665,40.0,9.8272,9.8237,111.5639]
[1672550190851,76.41,9.8271,9.8179,40.0]
[1672550191066,76.41,9.8271,9.8186,20.0]
[1672550191280,76.4,9.8273,9.8186,20.0]
[1672550191595,40.0,9.8274,9.8186,20.0]
[1672550191801,40.0,9.8272,9.8186,136.7922]
[1672550192006,76.41,9.8271,9.8186,136.7922]
[1672550192232,40.0,9.827,9.8186,116.7922]
[1672550192548,20.0,9.8269,9.8177,23.2027154]
[1672550192756,40.0,9.8268,9.8177,23.2027154]
[1672550192969,96.41,9.8267,9.8177,23.2027154]
[1672550193171,40.0,9.8266,9.8177,23.2027154]
[1672550193385,40.0,9.8264,9.8177,23.2027154]
[1672550193606,40.0,9.8262,9.8177,23.2027154]
[1672550193798,76.41,9.8261,9.8177,23.2027154]
[1672550194006,60.0,9.826,9.8177,23.2027154]
[1672550194226,40.0,9.8258,9.8177,23.2027154]
[1672550194437,40.0,9.8256,9.8177,23.2027154]
[1672550194637,40.0,9.8254,9.8177,23.2027154]
[1672550194853,96.42,9.8253,9.8177,23.2027154]
[1672550195071,40.0,9.8252,9.8177,23.2027154]
[1672550195277,40.0,9.825,9.8177,23.2027154]
[1672550195477,96.42,9.8249,9.8177,23.2027154]
[1672550195692,40.0,9.8248,9.8177,23.2027154]
[1672550195909,40.0,9.8246,9.8177,23.2027154]
[1672550196106,40.0,9.8244,9.8177,23.2027154]
[1672550196330,96.43,9.8243,9.8177,23.2027154]
[1672550196643,40.0,9.8242,9.8177,23.2027154]
[1672550196854,40.0,9.824,9.8177,23.2027154]
[1672550197061,76.43,9.8239,9.8177,23.2027154]
[1672550197387,40.0,9.8238,9.8177,23.2027154]
[1672550197581,76.43,9.8239,9.8177,23.2027154]
[1672550197906,40.0,9.8239,9.8177,23.2027154]
[1672550198114,40.0,9.8238,9.8177,23.2027154]
[1672550198435,74.73800823,9.8211,9.7956,189.1071056]
[1672550198652,76.45,9.821,9.8027,108.9123]
[1672550198837,60.0,9.8209,9.8028,108.9123]
[1672550199161,60.0,9.8209,9.7885,304.88975958]
[1672550199162,40.0,9.8197,9.8029,108.9123]
[1672550199370,812.23778931,9.8196,9.803,108.9123]
[1672550199694,792.42219656,9.8195,9.8031,108.9123]
[1672550199908,40.0,9.8193,9.8032,103.9123]
[1672550200220,40.0,9.8191,9.7967,40.825168]
[1672550200440,836.09367157,9.819,9.8013,4.71888904]
[1672550200626,831.77099494,9.8189,9.7967,40.825168]
[1672550200836,831.77099494,9.8189,9.7968,3.376]
[1672550200837,40.0,9.8187,9.7968,3.376]
[1672550201060,934.06740009,9.8186,9.7968,3.376]
[1672550201267,901.12935383,9.8185,9.7969,40.0]
[1672550201474,40.0,9.8183,9.797,4.383]
[1672550201687,40.0,9.8181,9.797,4.383]
[1672550201898,942.46465306,9.818,9.7968,4.383]
[1672550202111,881.29737215,9.8179,9.7968,4.383]
[1672550202317,40.0,9.8177,9.7969,40.0]
[1672550202641,40.0,9.8177,9.798,40.0]
[1672550202642,40.0,9.8175,9.798,40.0]
[1672550202844,862.88068193,9.8174,9.7981,4.383]
[1672550203045,841.93840471,9.8173,9.8011,4.382]
[1672550203259,40.0,9.8171,9.8011,4.382]
[1672550203467,877.95266723,9.817,9.8013,40.0]
[1672550203680,815.40751911,9.8169,9.8014,21.381]
[1672550203888,40.0,9.8167,9.8015,40.0]
[1672550204104,40.0,9.8165,9.8017,40.0]
[1672550204306,40.0,9.8163,9.8018,4.058]
[1672550204515,40.0,9.8161,9.8018,21.058]
[1672550204720,724.84980628,9.816,9.8018,21.058]
[1672550204938,40.0,9.8199,9.8021,40.0]
[1672550205144,701.00162997,9.82,9.8022,41.058]
[1672550205477,40.0,9.8293,9.8024,303.4]
[1672550205689,40.0,9.8293,9.8023,113.63839144]
[1672550205690,863.01730653,9.8292,9.8026,910.2]
[1672550205876,831.66206397,9.8291,9.8029,40.0]
[1672550206087,40.0,9.8289,9.8031,18.83234]
[1672550206305,849.06469741,9.8288,9.8033,40.0]
[1672550206527,817.80897915,9.8287,9.8035,343.4]
[1672550206730,40.0,9.8285,9.8037,40.0]
[1672550206949,842.48650331,9.8284,9.8039,303.4]
[1672550207156,803.71461748,9.8283,9.8041,303.4]
[1672550207367,40.0,9.8281,9.8043,40.0]
[1672550207604,40.0,9.8279,9.8045,40.0]
[1672550207787,804.24816944,9.8278,9.8047,303.4]
[1672550207981,756.45998387,9.8277,9.8049,303.4]
[1672550208316,40.0,9.8275,9.8051,343.4]
[1672550208524,40.0,9.8273,9.8053,343.4]
[1672550208728,758.96154992,9.8272,9.8057,303.4]
[1672550208929,758.96154992,9.8272,9.806,910.2]
[1672550209140,758.96154992,9.8272,9.8063,40.0]
[1672550209355,112.4542,9.8271,9.8065,18.82581]
[1672550209560,76.41,9.827,9.8067,910.2]
[1672550209771,20.0,9.8269,9.807,40.0]
[1672550210087,76.41,9.8268,9.8077,950.2]
[1672550210296,76.41,9.8268,9.8079,18.82313]
[1672550210625,132.4542,9.8267,9.8081,343.4]
[1672550210827,76.41,9.8266,9.8082,22.25155]
[1672550211031,20.0,9.8265,9.8087,910.2]
[1672550211259,76.41,9.8264,9.8089,322.22121]
[1672550211475,20.0,9.8263,9.8092,303.4]
[1672550211662,76.41,9.8262,9.8094,343.4]
[1672550211878,20.0,9.8261,9.8096,40.0]
[1672550212195,76.41,9.826,9.8098,40.0]
[1672550212519,20.0,9.8259,9.81,343.4]
[1672550212732,40.0,9.8257,9.8102,40.0]
[1672550212929,96.42,9.8256,9.8104,40.0]
[1672550213139,96.42,9.8256,9.8105,3.454]
[1672550213140,40.0,9.8255,9.8105,3.454]
[1672550213346,96.42,9.8254,9.8106,343.4]
[1672550213559,96.42,9.8254,9.8107,3.454]
[1672550213788,40.0,9.8253,9.8108,40.0]
[1672550213984,40.0,9.8251,9.811,40.0]
[1672550214313,40.0,9.8249,9.8111,3.454]
[1672550214517,96.42,9.8248,9.8112,303.4]
[1672550214731,40.0,9.8247,9.8113,43.454]
[1672550214932,40.0,9.8245,9.8113,43.454]
[1672550215144,40.0,9.8243,9.8113,43.454]
[1672550215346,96.43,9.8242,9.8116,40.0]
[1672550215674,40.0,9.8241,9.8117,3.453]
[1672550215883,96.43,9.824,9.8119,40.0]
[1672550216083,40.0,9.8239,9.812,3.582]
[1672550216289,40.0,9.8237,9.8119,43.582]
[1672550216618,40.0,9.8235,9.8119,113.0715]
[1672550216816,76.43,9.8234,9.8119,109.4895]
[1672550217032,40.0,9.8233,9.812,109.4895]
[1672550217348,40.0,9.8231,9.8121,118.0147]
[1672550217563,40.0,9.8229,9.8122,118.0147]
[1672550217776,76.44,9.8228,9.8123,118.0147]
[1672550218088,76.44,9.8228,9.8079,3.584]
[1672550218089,40.0,9.8227,9.8124,118.0147]
[1672550218298,40.0,9.8225,9.8125,118.0147]
[1672550218493,40.0,9.8223,9.8126,118.0147]
[1672550218837,40.0,9.8221,9.8127,118.0147]
[1672550219046,40.0,9.8219,9.8127,118.0147]
[1672550219253,76.45,9.8218,9.8127,118.0147]
[1672550219441,40.0,9.8217,9.8127,118.0147]
[1672550219652,40.0,9.8215,9.8128,118.0147]
[1672550219862,40.0,9.8213,9.8129,118.0147]
[1672550220086,40.0,9.8211,9.813,118.0147]
[1672550220293,76.45,9.821,9.8096,3.583]
[1672550220507,40.0,9.8209,9.8098,40.0]
[1672550220708,40.0,9.8207,9.8098,43.76]
[1672550220922,40.0,9.8205,9.8098,40.0]
[1672550221232,76.46,9.8204,9.81,40.0]
[1672550221875,76.46,9.8204,9.8102,40.0]
[1672550222072,76.45,9.8216,9.8102,40.0]
[1672550222290,76.45,9.8218,9.8104,40.0]
[1672550222703,40.0,9.8217,9.8104,40.0]
[1672550223027,40.0,9.8215,9.8106,40.0]
[1672550223242,40.0,9.8213,9.8106,40.0]
[1672550223453,76.45,9.8212,9.8108,40.0]
[1672550223641,40.0,9.8211,9.8108,40.0]
[1672550223852,40.0,9.8209,9.8108,40.0]
[1672550224064,76.45,9.8208,9.811,40.0]
[1672550224480,40.0,9.8211,9.8109,116.3015]
[1672550224706,40.0,9.8209,9.811,116.3015]
[1672550224910,76.45,9.8208,9.811,116.3015]
[1672550225116,40.0,9.8207,9.811,116.3015]
[1672550225453,40.0,9.8205,9.8111,116.3015]
[1672550225662,40.0,9.8203,9.8112,116.3015]
[1672550225858,76.46,9.8202,9.8112,116.3015]
[1672550226068,40.0,9.8201,9.8112,116.3015]
[1672550226273,40.0,9.8199,9.8112,116.3015]
[1672550226498,40.0,9.8197,9.8113,109.8417]
[1672550226707,40.0,9.8195,9.8113,109.8417]
[1672550226909,76.47,9.8194,9.8113,109.8417]
[1672550227229,40.0,9.8193,9.8113,109.8417]
[1672550227436,76.47,9.8192,9.8113,109.8417]
[1672550227656,76.46,9.8196,9.8113,109.8417]
[1672550227866,40.0,9.8195,9.8113,109.8417]
[1672550228072,76.47,9.8194,9.8113,109.8417]
[1672550228706,76.47,9.8194,9.8114,40.0]
[1672550228898,76.45,9.8216,9.8114,40.0]
[1672550229117,76.44,9.8222,9.8116,40.0]
[1672550229320,40.0,9.8223,9.8118,40.0]
[1672550229539,76.44,9.8222,9.8118,40.0]
[1672550229959,76.44,9.8228,9.812,40.0]
[1672550230178,76.44,9.823,9.8122,40.0]
[1672550230502,76.44,9.823,9.8122,343.4]
[1672550230703,76.42,9.8254,9.8125,40.0]
[1672550230916,20.0,9.8239,9.8127,40.0]
[1672550231122,116.42,9.8252,9.8128,3.414]
[1672550231330,20.0,9.8251,9.8129,40.0]
[1672550231539,40.0,9.8249,9.813,3.414]
[1672550231753,96.42,9.8248,9.813,3.414]
[1672550231970,40.0,9.8247,9.8132,40.0]
[1672550232174,96.43,9.8246,9.8133,3.414]
[1672550232498,76.43,9.8246,9.8133,3.414]
[1672550232708,20.0,9.8245,9.8135,40.0]
[1672550232918,76.43,9.8244,9.8135,40.0]
[1672550233341,20.0,9.8243,9.8137,40.0]
[1672550233535,76.43,9.8242,9.8137,40.0]
[1672550233753,20.0,9.8241,9.8137,343.4]
[1672550233960,20.0,9.8241,9.814,40.0]
[1672550234173,76.43,9.824,9.814,40.0]
[1672550234496,20.0,9.8239,9.8141,3.476]
[1672550234904,76.43,9.8238,9.814,40.0]
[1672550235210,20.0,9.8239,9.8141,3.476]
[1672550235423,20.0,9.8251,9.8141,3.476]
[1672550235635,76.42,9.825,9.8141,3.476]
[1672550235861,20.0,9.8249,9.8141,3.476]
[1672550236059,76.42,9.8248,9.8141,3.476]
[1672550236389,20.0,9.8247,9.8141,3.476]
[1672550236816,20.0,9.8251,9.8141,3.476]
[1672550237120,20.0,9.8252,9.8141,3.476]
[1672550239001,20.0,9.8252,9.8142,40.0]
[1672550239211,76.42,9.8251,9.8143,3.396]
[1672550239422,20.0,9.825,9.8143,3.396]
[1672550239632,76.42,9.8249,9.8143,3.396]
[1672550239836,20.0,9.8248,9.8143,3.396]
[1672550240063,76.42,9.8247,9.8143,3.396]
[1672550240274,20.0,9.8246,9.8143,3.396]
[1672550240486,20.0,9.8246,9.8144,40.0]
[1672550240693,20.0,9.8246,9.8145,4.503]
[1672550240887,96.42,9.8252,9.8145,4.503]
[1672550241312,96.42,9.8252,9.8147,303.4]
[1672550241529,96.42,9.8252,9.8148,56.33]
[1672550241737,96.42,9.8252,9.8148,40.0]
[1672550243009,40.0,9.8251,9.8148,40.0]
[1672550243329,40.0,9.8249,9.8133,18.26]
[1672550243527,96.42,9.8248,9.8133,18.26]
[1672550243953,40.0,9.8247,9.8133,18.26]
[1672550244156,96.43,9.8246,9.8133,18.26]
[1672550244572,96.43,9.8246,9.8136,17.53]
[1672550244782,96.43,9.8246,9.8141,17.53]
[1672550245739,96.43,9.8246,9.8142,40.0]
[1672550246790,40.0,9.8245,9.8142,40.0]
[1672550247005,40.0,9.8243,9.8142,40.0]
[1672550247209,96.43,9.8242,9.8141,40.0]
[1672550247429,40.0,9.8241,9.8141,40.0]
[1672550247737,40.0,9.8239,9.8141,40.0]
[1672550247949,40.0,9.8239,9.8139,108.5291]
[1672550247950,76.43,9.8238,9.8139,108.5291]
[1672550248153,76.43,9.8238,9.814,40.0]
[1672550248362,76.43,9.824,9.814,343.4]
[1672550248574,20.0,9.8239,9.8141,17.0]
[1672550248769,20.0,9.8239,9.814,40.0]
[1672550248983,76.43,9.8238,9.814,40.0]
[1672550249405,76.43,9.8238,9.814,343.4]
[1672550249823,20.0,9.8239,9.8142,40.0]
[1672550250042,20.0,9.8251,9.8143,17.0]
[1672550250248,76.42,9.825,9.8144,40.0]
[1672550250459,20.0,9.8249,9.8144,40.0]
[1672550250683,76.42,9.8248,9.8144,40.0]
[1672550251001,20.0,9.8247,9.8146,343.4]
[1672550251209,20.0,9.8247,9.8148,40.0]
[1672550251396,20.0,9.8252,9.815,40.0]
[1672550251606,20.0,9.8252,9.8151,26.16]
[1672550251835,20.0,9.8252,9.8153,40.0]
[1672550252055,20.0,9.8252,9.8155,40.0]
[1672550252246,20.0,9.8252,9.8156,17.0]
[1672550252456,20.0,9.8252,9.8157,40.0]
[1672550252697,20.0,9.8252,9.8158,17.0]
[1672550253955,20.0,9.8252,9.8159,40.0]
[1672550253956,76.42,9.8251,9.8159,40.0]
[1672550254158,20.0,9.825,9.816,17.0]
[1672550254796,20.0,9.8252,9.816,17.0]
[1672550256899,76.42,9.8251,9.816,17.0]
[1672550257326,20.0,9.825,9.816,17.0]
[1672550257530,20.0,9.8252,9.816,17.0]
[1672550258270,20.0,9.8252,9.8159,40.0]
[1672550258473,76.42,9.8251,9.816,17.0]
[1672550258670,20.0,9.825,9.816,17.0]
[1672550258881,20.0,9.8252,9.8162,303.4]
[1672550259100,20.0,9.8252,9.8161,74.57451867]
[1672550259101,20.0,9.8252,9.8164,303.4]
[1672550259323,20.0,9.8252,9.8165,40.0]
[1672550259515,20.0,9.8252,9.8166,17.0]
[1672550259936,20.0,9.8252,9.8165,40.0]
[1672550260146,76.42,9.8251,9.8167,343.4]
[1672550260348,20.0,9.825,9.8168,40.0]
[1672550260877,20.0,9.8252,9.8168,40.0]
[1672550262987,20.0,9.8252,9.8171,40.0]
[1672550269097,20.0,9.8252,9.817,303.4]
[1672550269289,20.0,9.8252,9.8171,40.0]
[1672550269735,20.0,9.8252,9.8173,40.0]
[1672550269918,20.0,9.8252,9.8174,17.0]
[1672550270127,20.0,9.8252,9.8175,303.4]
[1672550270340,20.0,9.8252,9.8177,303.4]
[1672550270556,20.0,9.8252,9.8178,40.0]
[1672550270778,20.0,9.8252,9.8179,17.0]
[1672550271394,20.0,9.8251,9.8179,17.0]
[1672550272249,20.0,9.8251,9.818,40.0]
[1672550272456,20.0,9.8268,9.8181,17.0]
[1672550273509,20.0,9.8269,9.8181,17.0]
[1672550273931,20.0,9.8271,9.8181,17.0]
[1672550274130,76.41,9.827,9.8181,17.0]
[1672550274339,20.0,9.8269,9.8181,17.0]
[1672550274982,20.0,9.8277,9.8181,17.0]
[1672550275198,76.4,9.8276,9.8181,17.0]
[1672550275404,20.0,9.8275,9.8181,17.0]
[1672550275721,76.4,9.8274,9.8181,17.0]
[1672550275911,20.0,9.8273,9.8181,17.0]
[1672550276123,76.39,9.8296,9.8183,303.4]
[1672550276342,292.59198246,9.8357,9.8185,40.0]
[1672550276343,76.37,9.8312,9.8185,40.0]
[1672550276663,115.4778,9.8326,9.8187,40.0]
[1672550276664,40.0,9.8324,9.8187,40.0]
[1672550276866,76.37,9.8323,9.8189,40.0]
[1672550277084,76.37,9.8323,9.8191,40.0]
[1672550277277,76.37,9.8323,9.8192,3.331]
[1672550277491,115.4778,9.8323,9.8194,40.0]
[1672550277722,76.37,9.8322,9.8196,40.0]
[1672550277928,76.37,9.8322,9.8197,40.33]
[1672550278119,76.37,9.8322,9.8198,343.4]
[1672550278333,76.37,9.8322,9.82,40.0]
[1672550278656,76.37,9.8322,9.8201,3.984]
[1672550278855,76.37,9.8322,9.8203,40.0]
[1672550279067,74.73800823,9.832,9.8205,40.0]
[1672550279273,74.73800823,9.832,9.8206,7.8]
[1672550279482,74.73800823,9.832,9.8208,40.0]
[1672550279709,115.4778,9.8323,9.8208,40.0]
[1672550279710,115.4778,9.8323,9.821,40.0]
[1672550279901,115.4778,9.8323,9.8211,336.07]
[1672550280112,115.4778,9.8323,9.8212,40.0]
[1672550280322,115.4778,9.8323,9.8214,40.0]
[1672550280550,115.4778,9.8323,9.8215,35.41]
[1672550280748,115.4778,9.8323,9.8217,40.0]
[1672550280958,74.73800823,9.8318,9.8219,40.0]
[1672550281170,74.73800823,9.8321,9.8221,40.0]
[1672550281389,74.73800823,9.8321,9.8222,44.76]
[1672550281591,74.73800823,9.8321,9.8223,343.4]
[1672550281804,74.73800823,9.832,9.8225,40.0]
[1672550282022,74.73800823,9.832,9.8227,40.0]
[1672550282222,74.73800823,9.832,9.8228,31.83]
[1672550282431,74.73800823,9.832,9.823,40.0]
[1672550282635,74.73800823,9.8319,9.8232,40.0]
[1672550282883,74.73800823,9.8319,9.8227,40.0]
[1672550282884,40.0,9.8318,9.8105,644.02]
[1672550283218,74.73800823,9.8319,9.8221,40.0]
[1672550283403,40.0,9.8317,9.8221,40.0]
[1672550283619,76.37,9.8316,9.8221,40.0]
[1672550284042,115.4778,9.8323,9.8221,40.0]
[1672550284043,76.37,9.8318,9.8221,40.0]
[1672550284261,74.73800823,9.8322,9.8221,40.0]
[1672550284262,76.37,9.8321,9.8221,40.0]
[1672550284795,151.10800823,9.8321,9.8221,40.0]
[1672550284979,76.37,9.8321,9.8221,40.0]
[1672550285192,151.10800823,9.8321,9.8221,40.0]
[1672550285616,76.37,9.8321,9.8221,40.0]
[1672550285842,151.10800823,9.8321,9.8221,40.0]
[1672550286028,76.37,9.8321,9.8221,40.0]
[1672550286241,76.37,9.8322,9.8221,40.0]
[1672550286663,76.37,9.8322,9.8223,40.0]
[1672550286984,76.37,9.8322,9.8225,40.0]
[1672550289623,115.4778,9.8323,9.8225,40.0]
[1672550289819,76.37,9.8322,9.8225,40.0]
[1672550291085,191.8478,9.8323,9.8225,40.0]
[1672550293821,40.0,9.8322,9.822,153.5003]
[1672550294030,76.37,9.8321,9.8221,40.0]
[1672550294452,40.0,9.8321,9.8221,40.0]
[1672550294664,76.37,9.832,9.8221,40.0]
[1672550294870,76.37,9.8322,9.8221,40.0]
[1672550295297,40.0,9.8321,9.8221,40.0]
[1672550295512,76.37,9.832,9.8221,40.0]
[1672550296140,76.37,9.8322,9.822,153.5003]
[1672550296336,40.0,9.8321,9.8221,40.0]
[1672550296543,40.0,9.8319,9.8221,40.0]
[1672550296754,76.37,9.8318,9.8221,40.0]
[1672550297074,40.0,9.8319,9.8221,35.0]
[1672550297285,40.0,9.8317,9.8221,35.0]
[1672550297496,76.37,9.8316,9.8221,35.0]
[1672550297718,76.37,9.8322,9.8221,35.0]
[1672550298117,40.0,9.8321,9.8221,35.0]
[1672550298353,76.37,9.832,9.8221,35.0]
[1672550300330,40.0,9.8321,9.8221,35.0]
[1672550300540,40.0,9.8319,9.8221,35.0]
[1672550300751,76.37,9.8318,9.8221,35.0]
[1672550300961,76.37,9.8322,9.8222,303.4]
[1672550301171,115.4778,9.8323,9.8224,40.0]
[1672550301387,115.4778,9.8323,9.8224,343.4]
[1672550301587,115.4778,9.8323,9.8227,40.0]
[1672550301807,115.4778,9.8323,9.823,40.0]
[1672550302131,115.4778,9.8323,9.8233,40.0]
[1672550302447,115.4778,9.8323,9.8236,40.0]
[1672550302762,115.4778,9.8323,9.8239,40.0]
[1672550302973,115.4778,9.8323,9.824,17.0]
[1672550304421,115.4778,9.8323,9.8242,40.0]
[1672550304646,115.4778,9.8323,9.8243,17.0]
[1672550304960,115.4778,9.8323,9.8244,40.0]
[1672550305171,115.4778,9.8323,9.8245,320.4]
[1672550305379,115.4778,9.8323,9.8246,40.0]
[1672550305580,115.4778,9.8323,9.8247,17.0]
[1672550306129,149.0392071,9.8401,9.8247,17.0]
[1672550306130,76.35,9.8343,9.8247,17.0]
[1672550306337,20.0,9.8342,9.8247,17.0]
[1672550306530,20.0,9.8342,9.8229,303.4]
[1672550306531,151.08800823,9.8341,9.8229,303.4]
[1672550306739,151.08800823,9.8341,9.8198,76.46]
[1672550306949,134.73800823,9.834,9.8211,76.62074978]
[1672550307157,40.0,9.8338,9.8212,40.0]
[1672550307372,40.0,9.8336,9.8219,40.0]
[1672550307581,76.36,9.8335,9.8219,40.0]
[1672550307899,40.0,9.8334,9.8219,343.4]
[1672550308110,76.36,9.8333,9.8219,343.4]
[1672550308320,40.0,9.8332,9.8219,343.4]
[1672550308648,40.0,9.833,9.822,113.5003]
[1672550308841,76.36,9.8329,9.822,113.5003]
[1672550309071,40.0,9.8328,9.8221,40.0]
[1672550309406,40.0,9.8326,9.8221,40.0]
[1672550309593,40.0,9.8324,9.8221,40.0]
[1672550309928,40.0,9.8322,9.8221,116.62074978]
[1672550310120,76.37,9.8321,9.8221,116.62074978]
[1672550311171,76.37,9.8323,9.8221,116.62074978]
[1672550311818,76.36,9.8325,9.8221,116.62074978]
[1672550312025,76.36,9.8335,9.8223,40.0]
[1672550312238,74.73800823,9.8336,9.8225,303.4]
[1672550312450,76.36,9.8335,9.8227,40.0]
[1672550312766,76.36,9.8335,9.8229,40.0]
[1672550313078,40.0,9.8334,9.8231,40.0]
[1672550313286,76.36,9.8333,9.8231,40.0]
[1672550314552,40.0,9.8332,9.8231,40.0]
[1672550314765,76.36,9.8331,9.8231,40.0]
[1672550315167,40.0,9.8331,9.8231,40.0]
[1672550315376,40.0,9.8329,9.8231,40.0]
[1672550315586,76.36,9.8328,9.8231,40.0]
[1672550315798,40.0,9.8327,9.8231,40.0]
[1672550316009,76.36,9.8326,9.8231,40.0]
[1672550316749,40.0,9.8327,9.8231,40.0]
[1672550316971,40.0,9.8325,9.8231,40.0]
[1672550317160,76.36,9.8324,9.8229,40.0]
[1672550317365,40.0,9.8325,9.8229,40.0]
[1672550317577,76.36,9.8324,9.8229,40.0]
[1672550318019,40.0,9.8323,9.8229,40.0]
[1672550318207,76.36,9.8324,9.8227,40.0]
[1672550318546,76.36,9.8328,9.823,303.4]
[1672550318734,76.36,9.8328,9.8231,40.0]
[1672550318945,76.36,9.8328,9.8233,40.0]
[1672550319156,151.09800823,9.8328,9.8233,40.0]
[1672550319372,151.09800823,9.8328,9.8235,303.4]
[1672550319589,151.09800823,9.8328,9.8235,343.4]
[1672550319804,151.09800823,9.8328,9.8236,40.0]
[1672550320431,74.73800823,9.8327,9.8236,40.0]
[1672550320758,76.36,9.8326,9.8236,40.0]
[1672550321176,74.73800823,9.8325,9.8234,76.62074978]
[1672550321372,74.73800823,9.8325,9.822,113.5003]
[1672550321373,76.37,9.8324,9.822,113.5003]
[1672550321583,143.69322496,9.8324,9.822,113.5003]
[1672550321800,40.0,9.8323,9.822,113.5003]
[1672550322010,40.0,9.8321,9.822,113.5003]
[1672550322224,76.37,9.832,9.822,113.5003]
[1672550322435,40.0,9.8319,9.822,113.5003]
[1672550322649,40.0,9.8317,9.822,113.5003]
[1672550322847,40.0,9.8315,9.822,113.5003]
[1672550323057,76.37,9.8314,9.822,113.5003]
[1672550323268,40.0,9.8313,9.822,113.5003]
[1672550323477,76.37,9.8312,9.822,113.5003]
[1672550323689,74.73800823,9.8253,9.822,63.5003]
[1672550323904,40.0,9.8311,9.8016,188.48152711]
[1672550323905,40.0,9.8251,9.8026,969.34]
[1672550324114,40.0,9.8249,9.8036,40.0]
[1672550324326,96.42,9.8248,9.811,15.80730786]